[Event "XXII Obert Internacional d'Escacs Sant Marti 2022"]
[Site "Barcelona, Spain"]
[Date "2022.07.14"]
[Round "2.1"]
[White "Asis Gargatagli, Hipolito"]
[Black "Anustoop, Biswas"]
[Result "1-0"]
[TimeControl "1.30 fb 30"]
[WhiteElo "2514"]
[BlackElo "2175"]

1. e4 {[%clk 01:30:56]} {[%emt 00:00:03]} e6 {[%clk 01:30:58]} {[%emt
00:00:02]} 2. d4 {[%clk 01:31:14]} {[%emt 00:00:12]} d5 {[%clk 01:31:22]}
{[%emt 00:00:06]} 3. Nd2 {[%clk 01:31:40]} {[%emt 00:00:04]} c5 {[%clk
01:31:45]} {[%emt 00:00:07]} 4. exd5 {[%clk 01:32:03]} {[%emt 00:00:07]} Qxd5
{[%clk 01:32:13]} {[%emt 00:00:02]} 5. dxc5 {[%clk 01:32:25]} {[%emt 00:00:08]}
Nf6 {[%clk 01:32:38]} {[%emt 00:00:05]} 6. Ngf3 {[%clk 01:32:50]} {[%emt
00:00:05]} Qxc5 {[%clk 01:31:32]} {[%emt 00:01:36]} 7. g3 {[%clk 01:33:14]}
{[%emt 00:00:07]} Bd7 {[%clk 01:10:42]} {[%emt 00:21:19]} 8. Nb3 {[%clk
01:18:15]} {[%emt 00:15:29]} Qd5 {[%clk 01:06:33]} {[%emt 00:04:39]} 9. Qxd5
{[%clk 01:13:59]} {[%emt 00:04:46]} Nxd5 {[%clk 01:06:22]} {[%emt 00:00:41]} 10.
Bg2 {[%clk 01:13:30]} {[%emt 00:01:00]} Nb4 {[%clk 00:53:45]} {[%emt 00:13:05]}
11. Nbd4 {[%clk 01:11:12]} {[%emt 00:02:49]} N8c6 {[%clk 00:36:08]} {[%emt
00:18:07]} 12. a3 {[%clk 01:02:58]} {[%emt 00:08:44]} Nxd4 {[%clk 00:28:03]}
{[%emt 00:08:34]} 13. Nxd4 {[%clk 01:03:14]} {[%emt 00:00:15]} Nc6 {[%clk
00:28:31]} {[%emt 00:00:01]} 14. Nxc6 {[%clk 00:32:59]} {[%emt 00:30:46]} Bxc6
{[%clk 00:28:59]} {[%emt 00:00:02]} 15. Bxc6+ {[%clk 00:33:21]} {[%emt
00:00:08]} bxc6 {[%clk 00:29:23]} {[%emt 00:00:06]} 16. Be3 {[%clk 00:33:40]}
{[%emt 00:00:11]} Bd6 {[%clk 00:09:35]} {[%emt 00:20:18]} 17. O-O-O {[%clk
00:33:00]} {[%emt 00:01:09]} Ke7 {[%clk 00:08:53]} {[%emt 00:01:11]} 18. Rd3
{[%clk 00:32:19]} {[%emt 00:01:12]} Rhd8 {[%clk 00:07:56]} {[%emt 00:01:27]} 19.
Rhd1 {[%clk 00:30:14]} {[%emt 00:02:35]} e5 {[%clk 00:07:48]} {[%emt 00:00:37]}
20. b4 {[%clk 00:22:02]} {[%emt 00:08:43]} Rd7 {[%clk 00:04:26]} {[%emt
00:03:52]} 21. Kb2 {[%clk 00:15:30]} {[%emt 00:07:02]} Ke6 {[%clk 00:02:56]}
{[%emt 00:01:59]} 22. Kb3 {[%clk 00:14:40]} {[%emt 00:01:21]} Rad8 {[%clk
00:02:26]} {[%emt 00:01:00]} 23. Ka4 {[%clk 00:14:02]} {[%emt 00:01:08]} h6
{[%clk 00:02:11]} {[%emt 00:00:44]} 24. Ka5 {[%clk 00:07:58]} {[%emt 00:06:35]}
f5 {[%clk 00:01:26]} {[%emt 00:01:15]} 25. Ka6 {[%clk 00:08:07]} {[%emt
00:00:21]} g5 {[%clk 00:01:23]} {[%emt 00:00:32]} 26. Rc3 {[%clk 00:03:51]}
{[%emt 00:04:46]} f4 {[%clk 00:00:42]} {[%emt 00:01:11]} 27. gxf4 {[%clk
00:03:58]} {[%emt 00:00:24]} gxf4 {[%clk 00:01:11]} 28. Bc1 {[%clk 00:04:16]}
{[%emt 00:00:12]} Rc8 {[%clk 00:01:23]} {[%emt 00:00:18]} 29. Rh3 {[%clk
00:02:32]} {[%emt 00:02:14]} Rh8 {[%clk 00:01:52]} 30. Re1 {[%clk 00:02:38]}
{[%emt 00:00:24]} Kf6 {[%clk 00:02:06]} {[%emt 00:00:15]} 31. Rd3 {[%clk
00:02:50]} {[%emt 00:00:18]} Rb8 {[%clk 00:02:08]} {[%emt 00:00:28]} 32. Red1
{[%clk 00:02:54]} {[%emt 00:00:26]} Ke6 {[%clk 00:01:54]} {[%emt 00:00:42]} 33.
c4 {[%clk 00:02:30]} {[%emt 00:00:56]} Rbd8 {[%clk 00:01:20]} {[%emt 00:01:04]}
34. Rh3 {[%clk 00:00:45]} {[%emt 00:02:15]} Bf8 {[%clk 00:01:16]} {[%emt
00:00:33]} 35. Rxd7 {[%clk 00:00:49]} {[%emt 00:00:27]} Rxd7 {[%clk 00:01:45]}
36. Rc3 {[%clk 00:01:14]} {[%emt 00:00:05]} Bg7 {[%clk 00:01:22]} {[%emt
00:00:54]} 37. Rc2 {[%clk 00:01:36]} {[%emt 00:00:09]} Kf5 {[%clk 00:01:47]}
{[%emt 00:00:05]} 38. a4 {[%clk 00:01:46]} {[%emt 00:00:20]} e4 {[%clk
00:01:56]} {[%emt 00:00:20]} 39. c5 {[%clk 00:02:12]} {[%emt 00:00:04]} Bd4
{[%clk 00:01:37]} {[%emt 00:00:49]} 40. b5 {[%clk 00:02:21]} {[%emt 00:00:21]}
cxb5 {[%clk 00:01:25]} {[%emt 00:00:42]} 41. c6 {[%clk 00:01:34]} {[%emt
00:01:17]} Rc7 {[%clk 00:01:55]} 42. Kxb5 {[%clk 00:01:35]} {[%emt 00:00:28]}
e3 {[%clk 00:01:42]} {[%emt 00:00:43]} 43. f3 {[%clk 00:02:00]} {[%emt
00:00:04]} a6+ {[%clk 00:00:33]} {[%emt 00:01:39]} 44. Kxa6 {[%clk 00:02:25]}
{[%emt 00:00:06]} e2 {[%clk 00:01:02]} 45. Bd2 {[%clk 00:02:51]} {[%emt
00:00:03]} Bf2 {[%emt 00:00:31]} 46. Kb5 e1=Q 47. Bxe1 Bxe1 48. Kb6 Rc8 {[%clk
00:01:01]} 49. Kb7 1-0

[Event "XXII Obert Internacional d'Escacs Sant Marti 2022"]
[Site "Barcelona, Spain"]
[Date "2022.07.14"]
[Round "2.2"]
[White "Phadke, Sohan"]
[Black "Roshka, Yevgeniy"]
[Result "1/2-1/2"]
[TimeControl "1.30 fb 30"]
[WhiteElo "2177"]
[BlackElo "2497"]

1. e4 {[%clk 01:23:49]} {[%emt 00:07:10]} e6 {[%clk 01:30:38]} {[%emt
00:00:23]} 2. d4 {[%clk 01:20:24]} {[%emt 00:03:54]} d5 {[%clk 01:31:06]}
{[%emt 00:00:02]} 3. Nc3 {[%clk 01:20:43]} {[%emt 00:00:11]} Bb4 {[%clk
01:31:31]} {[%emt 00:00:06]} 4. exd5 {[%clk 01:20:41]} {[%emt 00:00:32]} exd5
{[%clk 01:31:54]} {[%emt 00:00:07]} 5. Bd3 {[%clk 01:21:04]} {[%emt 00:00:06]}
Ne7 {[%clk 01:27:38]} {[%emt 00:04:46]} 6. Qh5 {[%clk 01:13:35]} {[%emt
00:07:59]} Nbc6 {[%clk 01:25:16]} {[%emt 00:02:52]} 7. Nge2 {[%clk 01:07:56]}
{[%emt 00:06:08]} Be6 {[%clk 01:24:07]} {[%emt 00:01:39]} 8. O-O {[%clk
01:06:44]} {[%emt 00:01:43]} Qd7 {[%clk 01:23:46]} {[%emt 00:00:52]} 9. a3
{[%clk 01:03:16]} {[%emt 00:03:58]} Bxc3 {[%clk 01:24:01]} {[%emt 00:00:15]} 10.
bxc3 {[%clk 01:03:39]} {[%emt 00:00:06]} Bf5 {[%clk 01:19:06]} {[%emt
00:05:25]} 11. Ng3 {[%clk 00:57:00]} {[%emt 00:07:09]} Bxd3 {[%clk 01:17:33]}
{[%emt 00:02:04]} 12. cxd3 {[%clk 00:57:12]} {[%emt 00:00:16]} O-O {[%clk
01:17:49]} {[%emt 00:00:15]} 13. Qf3 {[%clk 00:52:23]} {[%emt 00:05:19]} b5
{[%clk 01:09:57]} {[%emt 00:08:22]} 14. h4 {[%clk 00:48:10]} {[%emt 00:04:43]}
a5 {[%clk 01:07:27]} {[%emt 00:03:01]} 15. h5 {[%clk 00:40:48]} {[%emt
00:07:52]} h6 {[%clk 01:07:10]} {[%emt 00:00:47]} 16. Be3 {[%clk 00:32:56]}
{[%emt 00:08:21]} b4 {[%clk 01:03:13]} {[%emt 00:04:27]} 17. axb4 {[%clk
00:32:54]} {[%emt 00:00:32]} axb4 {[%clk 01:03:41]} {[%emt 00:00:02]} 18. cxb4
{[%clk 00:32:22]} {[%emt 00:01:02]} Nxb4 {[%clk 01:04:01]} {[%emt 00:00:11]} 19.
Rxa8 {[%clk 00:31:28]} {[%emt 00:01:24]} Rxa8 {[%clk 01:04:28]} {[%emt
00:00:02]} 20. Rb1 {[%clk 00:31:53]} {[%emt 00:00:05]} Nbc6 {[%clk 01:04:42]}
{[%emt 00:00:17]} 21. Qf4 {[%clk 00:29:17]} {[%emt 00:03:05]} Rb8 {[%clk
01:02:11]} {[%emt 00:03:01]} 22. Rxb8+ {[%clk 00:29:06]} {[%emt 00:00:41]} Nxb8
{[%clk 01:02:40]} {[%emt 00:00:02]} 23. Bc1 {[%clk 00:28:31]} {[%emt 00:01:03]}
Nbc6 {[%clk 00:43:09]} {[%emt 00:20:02]} 24. Ba3 {[%clk 00:27:04]} {[%emt
00:01:56]} Nd8 {[%clk 00:43:05]} {[%emt 00:00:35]} 25. Bxe7 {[%clk 00:20:41]}
{[%emt 00:06:52]} Qxe7 {[%clk 00:43:34]} {[%emt 00:00:02]} 26. Nf5 {[%clk
00:21:01]} {[%emt 00:00:10]} Qe1+ {[%clk 00:43:28]} {[%emt 00:00:37]} 27. Kh2
{[%clk 00:19:07]} {[%emt 00:02:24]} Ne6 {[%clk 00:43:56]} {[%emt 00:00:02]} 28.
Qf3 {[%clk 00:19:28]} {[%emt 00:00:08]} Kh8 {[%clk 00:38:23]} {[%emt 00:05:58]}
29. Ne3 {[%clk 00:11:51]} {[%emt 00:08:11]} Kg8 {[%clk 00:37:43]} {[%emt
00:01:11]} 30. Nxd5 {[%clk 00:07:01]} {[%emt 00:05:20]} Nxd4 {[%clk 00:31:32]}
{[%emt 00:06:41]} 31. Nf6+ {[%clk 00:05:23]} {[%emt 00:02:09]} gxf6 {[%clk
00:32:01]} {[%emt 00:00:02]} 32. Qg4+ {[%clk 00:05:50]} {[%emt 00:00:02]} Kf8
{[%clk 00:32:30]} 33. Qxd4 {[%clk 00:06:17]} {[%emt 00:00:03]} Qe5+ {[%clk
00:32:35]} {[%emt 00:00:25]} 34. Qxe5 {[%clk 00:06:44]} {[%emt 00:00:03]} fxe5
{[%clk 00:33:04]} {[%emt 00:00:01]} 35. Kg3 {[%clk 00:04:52]} {[%emt 00:02:21]}
Ke7 {[%clk 00:32:50]} {[%emt 00:00:44]} 36. f4 {[%clk 00:04:53]} {[%emt
00:00:29]} Ke6 {[%clk 00:31:53]} {[%emt 00:01:27]} 37. Kf3 {[%clk 00:04:56]}
{[%emt 00:00:27]} f5 {[%clk 00:09:16]} {[%emt 00:23:08]} 38. Ke3 {[%clk
00:03:52]} {[%emt 00:01:33]} Kf6 {[%clk 00:02:54]} {[%emt 00:06:52]} 39. fxe5+
{[%clk 00:03:39]} {[%emt 00:00:43]} Kxe5 {[%clk 00:03:23]} {[%emt 00:00:01]} 40.
d4+ {[%clk 00:04:07]} {[%emt 00:00:02]} Kd5 {[%clk 00:03:13]} {[%emt 00:00:40]}
41. Kf4 {[%clk 00:04:30]} {[%emt 00:00:07]} Ke6 {[%clk 00:02:10]} {[%emt
00:01:33]} 42. d5+ {[%clk 00:03:40]} {[%emt 00:01:20]} Kxd5 {[%clk 00:02:39]}
{[%emt 00:00:01]} 43. Kxf5 {[%clk 00:04:08]} {[%emt 00:00:03]} c5 {[%clk
00:03:02]} {[%emt 00:00:07]} 44. g4 {[%clk 00:04:33]} {[%emt 00:00:06]} c4
{[%clk 00:03:23]} {[%emt 00:00:08]} 45. g5 {[%clk 00:05:01]} {[%emt 00:00:02]}
c3 {[%clk 00:03:46]} {[%emt 00:00:08]} 46. gxh6 {[%clk 00:05:14]} {[%emt
00:00:16]} c2 {[%clk 00:04:15]} {[%emt 00:00:02]} 47. h7 {[%clk 00:05:37]}
{[%emt 00:00:05]} c1=Q {[%clk 00:04:42]} {[%emt 00:00:04]} 48. h8=Q {[%clk
00:06:02]} {[%emt 00:00:06]} Qb1 {[%clk 00:04:08]} {[%emt 00:01:03]} 49. Kg5
{[%clk 00:06:16]} {[%emt 00:00:15]} Qc1 {[%clk 00:04:32]} {[%emt 00:00:07]} 50.
Kg6 {[%clk 00:06:32]} {[%emt 00:00:14]} Qb1+ {[%clk 00:04:53]} {[%emt
00:00:09]} 51. Kh6 {[%clk 00:06:14]} {[%emt 00:00:48]} Qc1+ {[%clk 00:05:17]}
{[%emt 00:00:06]} 52. Kh7 {[%clk 00:05:38]} {[%emt 00:01:06]} Qb1+ {[%clk
00:05:45]} {[%emt 00:00:02]} 53. Kg8 {[%clk 00:05:53]} {[%emt 00:00:15]} Qb8+
{[%clk 00:06:10]} {[%emt 00:00:06]} 54. Kh7 {[%clk 00:06:13]} {[%emt 00:00:08]}
Qb1+ {[%clk 00:06:36]} {[%emt 00:00:05]} 1/2-1/2

[Event "XXII Obert Internacional d'Escacs Sant Marti 2022"]
[Site "Barcelona, Spain"]
[Date "2022.07.14"]
[Round "2.3"]
[White "Pena Gomez, Manuel"]
[Black "Dahale, Atul"]
[Result "1-0"]
[TimeControl "1.30 fb 30"]
[WhiteElo "2492"]
[BlackElo "2162"]

1. e4 {[%clk 01:30:57]} {[%emt 00:00:03]} c5 {[%clk 01:12:29]} {[%emt
00:18:32]} 2. Nf3 {[%clk 01:31:18]} {[%emt 00:00:09]} d6 {[%clk 01:12:21]}
{[%emt 00:00:37]} 3. d4 {[%clk 01:31:41]} {[%emt 00:00:07]} cxd4 {[%clk
01:12:37]} {[%emt 00:00:15]} 4. Nxd4 {[%clk 01:32:09]} {[%emt 00:00:02]} Nf6
{[%clk 01:12:59]} {[%emt 00:00:08]} 5. Nc3 {[%clk 01:32:33]} {[%emt 00:00:06]}
a6 {[%clk 01:13:24]} {[%emt 00:00:05]} 6. Be2 {[%clk 01:32:56]} {[%emt
00:00:07]} e5 {[%clk 01:11:37]} {[%emt 00:02:17]} 7. Nb3 {[%clk 01:33:23]}
{[%emt 00:00:03]} Be7 {[%clk 01:11:29]} {[%emt 00:00:37]} 8. O-O {[%clk
01:33:43]} {[%emt 00:00:10]} Be6 {[%clk 01:09:41]} {[%emt 00:02:19]} 9. Qd3
{[%clk 01:34:06]} {[%emt 00:00:07]} Nbd7 {[%clk 01:08:59]} {[%emt 00:01:11]} 10.
Nd5 {[%clk 01:30:06]} {[%emt 00:04:31]} Bxd5 {[%clk 01:03:53]} {[%emt
00:05:35]} 11. exd5 {[%clk 01:30:34]} {[%emt 00:00:03]} O-O {[%clk 01:04:06]}
{[%emt 00:00:17]} 12. Bd2 {[%clk 01:30:59]} {[%emt 00:00:05]} a5 {[%clk
01:03:28]} {[%emt 00:01:09]} 13. a4 {[%clk 01:30:18]} {[%emt 00:01:11]} b6
{[%clk 01:03:08]} {[%emt 00:00:50]} 14. Rae1 {[%clk 01:25:25]} {[%emt
00:05:22]} Qc7 {[%clk 01:01:05]} {[%emt 00:02:33]} 15. c4 {[%clk 01:24:00]}
{[%emt 00:01:55]} Nc5 {[%clk 00:58:47]} {[%emt 00:02:48]} 16. Nxc5 {[%clk
01:24:02]} {[%emt 00:00:29]} Qxc5 {[%clk 00:58:40]} {[%emt 00:00:36]} 17. Kh1
{[%clk 01:16:12]} {[%emt 00:08:20]} Qc7 {[%clk 00:58:17]} {[%emt 00:00:54]} 18.
Qh3 {[%clk 01:10:46]} {[%emt 00:05:55]} Nd7 {[%clk 00:53:40]} {[%emt 00:05:07]}
19. Bd3 {[%clk 01:00:08]} {[%emt 00:11:09]} g6 {[%clk 00:53:53]} {[%emt
00:00:17]} 20. f4 {[%clk 00:59:19]} {[%emt 00:01:19]} Bf6 {[%clk 00:47:37]}
{[%emt 00:06:46]} 21. f5 {[%clk 00:56:11]} {[%emt 00:03:39]} Rae8 {[%clk
00:42:33]} {[%emt 00:05:32]} 22. Bh6 {[%clk 00:43:22]} {[%emt 00:13:19]} Bg7
{[%clk 00:42:33]} {[%emt 00:00:31]} 23. Re4 {[%clk 00:42:12]} {[%emt 00:01:40]}
Nf6 {[%clk 00:39:26]} {[%emt 00:03:36]} 24. Rh4 {[%clk 00:35:58]} {[%emt
00:06:45]} e4 {[%clk 00:34:28]} {[%emt 00:05:28]} 25. Be2 {[%clk 00:35:19]}
{[%emt 00:01:08]} Re5 {[%clk 00:27:05]} {[%emt 00:07:54]} 26. g4 {[%clk
00:29:10]} {[%emt 00:06:38]} Qd7 {[%clk 00:22:59]} {[%emt 00:04:36]} 27. Bxg7
{[%emt 00:01:14]} Kxg7 {[%clk 00:23:23]} {[%emt 00:00:05]} 28. g5 {[%clk
00:28:50]} {[%emt 00:00:07]} Nh5 {[%clk 00:23:49]} {[%emt 00:00:05]} 29. f6+
{[%clk 00:29:13]} {[%emt 00:00:06]} 1-0

[Event "XXII Obert Internacional d'Escacs Sant Marti 2022"]
[Site "Barcelona, Spain"]
[Date "2022.07.14"]
[Round "2.4"]
[White "Barros, Raul Junior"]
[Black "Aronyak, Ghosh"]
[Result "0-1"]
[TimeControl "1.30 fb 30"]
[WhiteElo "2174"]
[BlackElo "2486"]

1. e4 {[%clk 01:23:17]} {[%emt 00:07:42]} c5 {[%clk 01:28:59]} {[%emt
00:02:02]} 2. Nf3 {[%clk 01:23:26]} {[%emt 00:00:21]} d6 {[%clk 01:29:12]}
{[%emt 00:00:17]} 3. d4 {[%clk 01:23:41]} {[%emt 00:00:15]} Nf6 {[%clk
01:29:23]} {[%emt 00:00:19]} 4. Nc3 {[%clk 01:23:51]} {[%emt 00:00:21]} cxd4
{[%clk 01:29:45]} {[%emt 00:00:07]} 5. Nxd4 {[%clk 01:24:11]} {[%emt 00:00:10]}
Nc6 {[%clk 01:30:02]} {[%emt 00:00:14]} 6. Be2 {[%clk 01:24:16]} {[%emt
00:00:24]} e5 {[%clk 01:26:56]} {[%emt 00:03:36]} 7. Nb3 {[%clk 01:23:13]}
{[%emt 00:01:34]} Be7 {[%clk 01:26:39]} {[%emt 00:00:46]} 8. Be3 {[%clk
01:22:59]} {[%emt 00:00:43]} Be6 {[%clk 01:26:28]} {[%emt 00:00:41]} 9. O-O
{[%clk 01:20:24]} {[%emt 00:03:05]} O-O {[%clk 01:26:49]} {[%emt 00:00:10]} 10.
f4 {[%clk 01:20:01]} {[%emt 00:00:52]} exf4 {[%clk 01:27:11]} {[%emt 00:00:08]}
11. Rxf4 {[%clk 01:19:35]} {[%emt 00:00:57]} Re8 {[%clk 01:27:28]} {[%emt
00:00:14]} 12. Qd2 {[%clk 01:16:18]} {[%emt 00:03:46]} d5 {[%clk 01:27:02]}
{[%emt 00:00:56]} 13. exd5 {[%clk 01:08:20]} {[%emt 00:08:28]} Nxd5 {[%clk
01:26:57]} {[%emt 00:00:35]} 14. Nxd5 {[%clk 01:08:16]} {[%emt 00:00:34]} Qxd5
{[%clk 01:24:27]} {[%emt 00:03:00]} 15. Bd3 {[%clk 00:52:18]} {[%emt 00:16:28]}
Rad8 {[%clk 01:14:22]} {[%emt 00:10:35]} 16. Rd1 {[%clk 00:33:51]} {[%emt
00:18:56]} Qe5 {[%clk 01:08:19]} {[%emt 00:06:34]} 17. c4 {[%clk 00:22:15]}
{[%emt 00:12:05]} f5 {[%clk 00:53:16]} {[%emt 00:15:33]} 18. Rf3 {[%clk
00:20:13]} {[%emt 00:02:32]} Bf6 {[%clk 00:45:28]} {[%emt 00:08:18]} 19. Nc5
{[%clk 00:12:59]} {[%emt 00:07:44]} Nd4 {[%clk 00:43:53]} {[%emt 00:02:06]} 20.
Nxb7 {[%clk 00:08:35]} {[%emt 00:04:54]} Nxf3+ {[%clk 00:43:37]} {[%emt
00:00:46]} 21. gxf3 {[%clk 00:09:00]} {[%emt 00:00:05]} Rb8 {[%clk 00:43:03]}
{[%emt 00:01:04]} 22. Bf4 {[%clk 00:08:34]} {[%emt 00:00:57]} Qd4+ {[%clk
00:43:18]} {[%emt 00:00:15]} 23. Be3 {[%clk 00:08:58]} {[%emt 00:00:06]} Qh4
{[%clk 00:42:17]} {[%emt 00:01:30]} 24. Bf2 {[%clk 00:07:21]} {[%emt 00:02:07]}
Bd4 {[%clk 00:39:49]} {[%emt 00:02:59]} 25. Nd6 {[%clk 00:06:26]} {[%emt
00:01:25]} Red8 {[%clk 00:39:29]} {[%emt 00:00:50]} 26. Nb5 {[%clk 00:03:15]}
{[%emt 00:03:41]} Bxf2+ {[%clk 00:37:32]} {[%emt 00:02:27]} 27. Qxf2 {[%clk
00:03:37]} {[%emt 00:00:08]} Qxf2+ {[%clk 00:32:53]} {[%emt 00:05:08]} 28. Kxf2
{[%clk 00:04:00]} {[%emt 00:00:07]} Rxd3 {[%clk 00:33:08]} {[%emt 00:00:16]} 29.
Rxd3 {[%clk 00:04:01]} {[%emt 00:00:29]} Bxc4 {[%clk 00:33:34]} {[%emt
00:00:04]} 30. Rd7 {[%clk 00:03:40]} {[%emt 00:00:50]} Bxb5 {[%clk 00:30:47]}
{[%emt 00:03:17]} 31. Rxa7 {[%clk 00:04:08]} {[%emt 00:00:03]} Bc6 {[%clk
00:30:14]} {[%emt 00:01:03]} 32. b3 {[%clk 00:04:21]} {[%emt 00:00:16]} Ra8
{[%clk 00:30:41]} {[%emt 00:00:04]} 33. Rxa8+ {[%clk 00:03:55]} {[%emt
00:00:56]} Bxa8 {[%clk 00:31:10]} 34. f4 {[%clk 00:03:59]} {[%emt 00:00:25]}
Kf7 {[%clk 00:31:32]} {[%emt 00:00:08]} 35. Ke3 {[%clk 00:04:16]} {[%emt
00:00:13]} h6 {[%clk 00:31:54]} {[%emt 00:00:08]} 36. h4 {[%clk 00:04:38]}
{[%emt 00:00:08]} Bd5 {[%clk 00:31:08]} {[%emt 00:01:17]} 37. Kd4 {[%clk
00:04:41]} {[%emt 00:00:27]} Be6 {[%clk 00:31:34]} {[%emt 00:00:04]} 38. Kc3
{[%clk 00:04:52]} {[%emt 00:00:18]} Kf6 {[%clk 00:31:12]} {[%emt 00:00:52]} 39.
a4 {[%clk 00:05:07]} {[%emt 00:00:16]} g5 {[%clk 00:31:32]} {[%emt 00:00:09]}
40. hxg5+ {[%clk 00:04:33]} {[%emt 00:01:04]} hxg5 {[%clk 00:32:01]} {[%emt
00:00:02]} 41. fxg5+ Kxg5 {[%clk 00:32:30]} 42. b4 {[%clk 00:05:04]} {[%emt
00:00:18]} f4 {[%clk 00:32:26]} {[%emt 00:00:34]} 43. a5 {[%clk 00:04:29]}
{[%emt 00:01:06]} f3 {[%clk 00:32:22]} {[%emt 00:00:33]} 44. Kd3 {[%clk
00:04:40]} {[%emt 00:00:19]} Kf4 {[%clk 00:32:31]} {[%emt 00:00:20]} 0-1

[Event "XXII Obert Internacional d'Escacs Sant Marti 2022"]
[Site "Barcelona, Spain"]
[Date "2022.07.14"]
[Round "2.5"]
[White "Berdayes Ason, Dylan Isidro"]
[Black "Vergara Jofre, Felipe"]
[Result "1-0"]
[TimeControl "1.30 fb 30"]
[WhiteElo "2480"]
[BlackElo "2151"]

1. d4 {[%clk 01:30:57]} {[%emt 00:00:02]} d5 {[%clk 01:17:36]} {[%emt
00:13:25]} 2. c4 {[%clk 01:31:23]} {[%emt 00:00:03]} e6 {[%clk 01:18:03]}
{[%emt 00:00:04]} 3. Nc3 {[%clk 01:31:47]} {[%emt 00:00:06]} a6 {[%clk
01:18:30]} {[%emt 00:00:03]} 4. cxd5 {[%clk 01:31:07]} {[%emt 00:01:09]} exd5
{[%clk 01:18:59]} {[%emt 00:00:02]} 5. Bf4 {[%clk 01:28:58]} {[%emt 00:02:38]}
Nf6 {[%clk 01:18:01]} {[%emt 00:01:28]} 6. e3 {[%clk 01:29:26]} {[%emt
00:00:02]} Bd6 {[%clk 01:11:33]} {[%emt 00:06:58]} 7. Bg5 {[%clk 01:29:53]}
{[%emt 00:00:03]} Be6 {[%clk 01:11:01]} {[%emt 00:01:03]} 8. Bd3 {[%clk
01:30:20]} {[%emt 00:00:03]} Nbd7 {[%clk 01:05:14]} {[%emt 00:06:17]} 9. f4
{[%clk 01:30:47]} {[%emt 00:00:02]} h6 {[%clk 01:04:26]} {[%emt 00:01:18]} 10.
Bh4 {[%clk 01:31:15]} {[%emt 00:00:02]} g5 {[%clk 01:01:41]} {[%emt 00:03:16]}
11. fxg5 {[%clk 01:31:42]} {[%emt 00:00:02]} hxg5 {[%clk 00:39:15]} {[%emt
00:22:56]} 12. Bxg5 {[%clk 01:32:09]} {[%emt 00:00:03]} Rxh2 {[%clk 00:32:52]}
{[%emt 00:06:53]} 13. Rxh2 {[%clk 01:32:09]} {[%emt 00:00:30]} Bxh2 {[%clk
00:33:21]} {[%emt 00:00:01]} 14. Nh3 {[%clk 01:28:55]} {[%emt 00:03:44]} c5
{[%clk 00:19:07]} {[%emt 00:14:45]} 15. Qf3 {[%clk 01:15:20]} {[%emt 00:14:04]}
Qb6 {[%clk 00:08:59]} {[%emt 00:10:38]} 16. O-O-O {[%clk 01:15:47]} {[%emt
00:00:03]} cxd4 {[%clk 00:06:50]} {[%emt 00:02:40]} 17. exd4 {[%clk 01:16:14]}
{[%emt 00:00:02]} Qxd4 {[%clk 00:06:23]} {[%emt 00:00:57]} 18. Bxa6 {[%clk
00:58:25]} {[%emt 00:18:19]} Qb6 {[%clk 00:01:43]} {[%emt 00:05:10]} 19. Bb5
{[%clk 00:40:59]} {[%emt 00:17:56]} Ne4 {[%clk 00:00:48]} {[%emt 00:01:25]} 20.
Bxd7+ {[%clk 00:41:26]} {[%emt 00:00:03]} Bxd7 {[%clk 00:00:39]} {[%emt
00:00:39]} 21. Nxd5 {[%clk 00:41:44]} {[%emt 00:00:12]} Qc5+ {[%clk 00:00:32]}
{[%emt 00:00:38]} 22. Kb1 {[%clk 00:42:06]} {[%emt 00:00:07]} Nxg5 {[%clk
00:00:32]} {[%emt 00:00:30]} 23. Nf6+ {[%clk 00:40:40]} {[%emt 00:01:56]} Ke7
{[%clk 00:00:48]} {[%emt 00:00:14]} 24. Rxd7+ {[%clk 00:40:13]} {[%emt
00:00:57]} Ke6 {[%clk 00:00:56]} {[%emt 00:00:22]} 25. Nxg5+ {[%clk 00:39:38]}
{[%emt 00:01:04]} Qxg5 {[%clk 00:01:20]} {[%emt 00:00:06]} 26. Qb3+ {[%clk
00:39:11]} {[%emt 00:00:57]} Kf5 {[%clk 00:00:47]} {[%emt 00:01:03]} 27. g4+
{[%clk 00:36:52]} {[%emt 00:02:49]} Kf4 {[%clk 00:00:34]} {[%emt 00:00:44]} 28.
Rd4+ {[%clk 00:36:25]} {[%emt 00:00:56]} Ke5 {[%clk 00:01:02]} {[%emt
00:00:03]} 29. Rd5+ {[%clk 00:36:43]} {[%emt 00:00:12]} Kxf6 {[%clk 00:01:30]}
{[%emt 00:00:02]} 30. Qb6+ {[%clk 00:36:51]} {[%emt 00:00:22]} 1-0